bitfinex/quotes_ETHUSD_20250801
["timestamp","ask_amount","ask_price","bid_price","bid_amount"]
[1754061534715,2.77963086,3597.6,3597.5,0.17733857]
[1754061534884,4.558,3597.9,3597.5,0.17733857]
[1754061535089,7.7978002,3597.9,3597.5,0.17733857]
[1754061535315,4.558,3597.9,3597.5,0.17733857]
[1754061535519,0.4604,3597.8,3597.5,0.17733857]
[1754061535716,4.558,3597.9,3597.5,0.17733857]
[1754061536079,0.4604,3597.8,3597.5,0.17733857]
[1754061536281,5.77963086,3597.6,3597.5,1e-08]
[1754061536482,0.55,3597.5,3595.5,0.9547]
[1754061536733,5.5716,3597.4,3595.6,0.9547]
[1754061536928,5.5716,3597.4,3595.7,0.96170448]
[1754061537124,5.5716,3597.4,3595.4,2.78132116]
[1754061537125,5.5716,3597.4,3595.8,0.00700341]
[1754061537322,5.5716,3597.4,3595.8,0.9547]
[1754061537527,5.5716,3597.4,3595.7,0.5115]
[1754061537528,1.03534828,3597.3,3595.7,0.5115]
[1754061537821,0.4604,3597.2,3595.7,0.5115]
[1754061538035,2.78009452,3597.0,3595.3,3.73610674]
[1754061538237,4.573,3596.9,3595.3,0.9547]
[1754061538396,5.5736,3596.9,3595.4,2.7813317]
[1754061538597,2.78070152,3596.3,3595.3,3.73610365]
[1754061538912,2.78039651,3596.7,3595.9,2.78090798]
[1754061539116,1.0006,3596.8,3595.9,2.7809388]
[1754061539418,1.0006,3596.8,3595.8,0.5115]
[1754061539419,0.4604,3596.8,3595.8,2.78101575]
[1754061539624,0.4604,3596.8,3595.7,0.5115]
[1754061539842,1.0902,3596.7,3595.4,0.00700854]
[1754061540043,2.78040371,3596.6,3595.4,2.78127851]
[1754061540248,0.75283687,3596.7,3595.2,0.5115]
[1754061540416,0.75283687,3596.7,3594.1,2.99071326]
[1754061540417,2.78040371,3596.6,3595.3,0.9547]
[1754061540746,0.4604,3596.5,3595.8,2.7810033]
[1754061540953,2.78070971,3596.3,3595.3,3.22460596]
[1754061541238,3.0,3596.8,3595.6,0.5115]
[1754061541543,0.4604,3597.0,3595.7,0.00700969]
[1754061541715,4.571,3596.7,3595.7,0.9547]
[1754061541911,4.571,3596.7,3596.2,2.78065986]
[1754061542110,2.78008441,3597.1,3596.2,2.78065986]
[1754061542111,4.57,3597.2,3596.3,0.5115]
[1754061542542,3.81539995,3597.1,3595.5,0.4432]
[1754061542835,2.78081612,3596.1,3595.4,3.29281226]
[1754061543061,2.78082208,3596.1,3595.3,2.78133967]
[1754061543196,2.78063565,3596.3,3595.4,2.78127881]
[1754061543396,0.4604,3596.4,3595.2,0.5115]
[1754061543638,0.1392,3595.9,3595.4,0.1392]
[1754061543799,0.1392,3595.9,3595.3,2.9205916]
[1754061544000,0.1392,3595.9,3595.4,2.78132097]
[1754061544222,0.1392,3595.9,3595.4,2.78127539]
[1754061544537,0.1392,3595.9,3595.5,3.29275027]
[1754061544736,0.1392,3595.9,3595.5,3.29273641]
[1754061544938,0.1392,3595.9,3595.5,0.5115]
[1754061545102,0.1392,3595.9,3595.6,0.9547]
[1754061545304,0.1392,3595.9,3595.7,0.5115]
[1754061546108,0.1392,3595.9,3595.3,0.5115]
[1754061546338,0.1392,3595.7,3595.3,0.5115]
[1754061546544,0.5402,3596.1,3595.0,0.5115]
[1754061546732,0.1392,3595.3,3595.0,0.5115]
[1754061547438,0.1392,3595.3,3594.8,0.1392]
[1754061547625,0.1392,3595.3,3594.8,0.5824]
[1754061547823,0.1392,3595.3,3594.8,0.1392]
[1754061548132,0.1392,3595.0,3594.8,2.78174334]
[1754061548317,3.0,3596.1,3594.9,0.9547]
[1754061548318,2.78118386,3595.6,3594.9,0.9547]
[1754061548521,0.1392,3595.2,3594.9,3.73638635]
[1754061548753,5.0194,3596.2,3595.0,0.9547]
[1754061548754,7.80014325,3596.2,3595.0,0.9547]
[1754061548914,0.1392,3595.7,3595.1,0.9617213]
[1754061549219,0.1392,3595.4,3594.9,0.5115]
[1754061549419,0.1392,3595.1,3594.9,0.5115]
[1754061549647,0.1392,3595.1,3594.6,3.29339791]
[1754061549956,0.1392,3595.1,3594.8,2.7817754]
[1754061550109,0.1392,3595.1,3594.6,2.7819507]
[1754061550311,2.78208935,3594.5,3593.4,2.96148076]
[1754061550563,1.0006,3595.0,3593.7,2.78259186]
[1754061550710,2.78198332,3594.6,3593.8,2.78256599]
[1754061550910,2.7780396,3594.5,3593.7,2.78262681]
[1754061551105,1.0006,3594.7,3593.4,1.13332363]
[1754061551106,4.561,3594.4,3593.4,1.13332363]
[1754061551346,7.34311401,3594.4,3593.4,1.13332363]
[1754061551667,7.34311401,3594.4,3593.4,0.17862363]
[1754061551668,2.78231777,3594.2,3593.4,0.17862363]
[1754061551860,4.56,3594.1,3593.4,0.17862363]
[1754061552024,0.03478018,3594.0,3593.4,0.17862363]
[1754061552229,4.559,3593.9,3593.4,0.17862363]
[1754061552531,0.4604,3593.8,3593.4,0.17862363]
[1754061552734,2.78280228,3593.5,3593.4,0.17862363]
[1754061552947,3.78340228,3593.5,3593.4,0.17862363]
[1754061553261,2.78347603,3592.7,3591.8,2.78406036]
[1754061553463,4.56,3592.6,3592.1,2.78388309]
[1754061553636,4.56,3592.6,3591.5,0.5115]
[1754061553984,0.5402,3592.7,3590.0,0.13699945]
[1754061554264,10.04455822,3593.6,3591.5,0.5115]
[1754061554265,0.5402,3593.0,3591.5,0.5115]
[1754061554479,4.574,3593.2,3591.6,0.45028644]
[1754061554688,0.82432626,3594.3,3591.7,3.5115]
[1754061554966,0.82432626,3594.3,3590.8,0.20689438]
[1754061554967,0.82432626,3594.3,3591.8,0.961773]
[1754061555165,0.82432626,3594.3,3592.9,2.78325651]
[1754061555323,0.82432626,3594.3,3594.2,2.7822603]
[1754061555523,0.82432626,3594.3,3593.7,0.4613]
[1754061555728,0.14004297,3595.5,3594.6,2.78193936]
[1754061555923,0.4293,3595.8,3594.2,0.5083]
[1754061556139,0.5496,3595.7,3594.2,0.5083]
[1754061556350,11.13939826,3595.6,3593.8,0.4613]
[1754061556528,4.44348433,3595.3,3593.8,0.4613]
[1754061556863,2.12606858,3595.2,3593.9,0.5083]
[1754061557165,2.78179592,3594.8,3593.1,0.5123]
[1754061557351,2.78263307,3593.8,3593.1,0.004]
[1754061557522,4.637,3594.3,3593.1,0.5123]
[1754061557726,9.683,3595.4,3594.7,2.7818127]
[1754061557727,11.322,3595.4,3594.7,2.7818127]
[1754061557934,4.639,3595.4,3594.4,0.5083]
[1754061558136,7.42210813,3595.7,3594.7,2.78180535]
[1754061558339,0.9789,3596.2,3595.3,2.78134956]
[1754061558525,0.85532705,3596.3,3595.2,2.78148642]
[1754061558752,0.85532705,3596.3,3595.3,0.0070183]
[1754061558955,5.0703,3597.3,3595.4,0.9696]
[1754061559265,0.9789,3598.2,3595.5,0.97660748]
[1754061559427,4.641,3598.4,3597.0,2.78003413]
[1754061559628,0.97987606,3598.8,3597.3,2.77979823]
[1754061559868,0.14473906,3598.8,3597.4,3.75632248]
[1754061560159,2.77823494,3599.5,3598.3,2.77901802]
[1754061560362,0.1392,3598.6,3598.2,3.28742188]
[1754061560573,0.1392,3598.6,3598.3,0.9696]
[1754061560774,4.642,3599.7,3598.5,0.1392]
[1754061560775,0.1392,3599.1,3598.5,0.1392]
[1754061560935,0.1392,3599.1,3599.0,2.77854959]
[1754061561136,0.1392,3599.7,3599.0,1.1088]
[1754061561341,7.96896676,3600.6,3599.5,2.77816194]
[1754061561342,2.7774042,3600.5,3599.5,2.77816194]
[1754061561568,4.642,3600.6,3599.6,0.5083]
[1754061561569,0.1392,3600.0,3599.6,0.5083]
[1754061561879,0.1392,3600.0,3597.3,3.32980304]
[1754061561880,0.4293,3601.3,3600.1,0.1392]
[1754061562087,0.1392,3600.9,3600.2,0.9696]
[1754061562242,0.1392,3600.9,3600.3,0.00692521]
[1754061562577,0.1392,3600.9,3600.2,0.97652454]
[1754061562737,0.1392,3600.9,3600.2,0.9696]
[1754061562945,0.001,3601.6,3600.5,2.77732447]
[1754061563263,2.77711427,3600.9,3600.6,0.1392]
[1754061563437,0.1392,3600.4,3599.6,0.9696]
[1754061563638,2.77768904,3600.2,3599.6,0.1392]
[1754061563978,0.1392,3600.1,3599.6,0.1392]
[1754061564233,0.1392,3600.1,3599.3,0.5083]
[1754061564350,0.03471643,3600.6,3597.1,2.77996914]
[1754061564351,1.01362222,3600.0,3598.8,0.5083]
[1754061564551,2.9173667,3599.5,3599.0,0.1392]
[1754061564753,0.03472801,3599.4,3598.4,0.4613]
[1754061564954,2.81264797,3599.9,3598.4,0.4613]
[1754061565266,2.77888778,3598.6,3598.2,0.1392]
[1754061565464,0.1392,3598.8,3598.3,0.5083]
[1754061565682,4.641,3600.2,3598.4,0.97656361]
[1754061565840,4.641,3600.2,3598.5,0.51525039]
[1754061566044,0.03472125,3600.1,3598.6,0.4613]
[1754061566257,0.1392,3599.6,3599.5,2.77816363]
[1754061566457,2.77732164,3600.6,3599.5,0.9696]
[1754061566678,0.1392,3600.5,3599.5,1.1088]
[1754061566853,0.1392,3600.7,3599.6,0.51523611]
[1754061567053,6.68,3601.6,3599.6,0.97653611]
[1754061567257,2.77662102,3601.5,3600.4,2.77743583]
[1754061567470,0.1392,3601.5,3601.0,0.1392]
[1754061567688,0.001,3601.6,3601.0,0.1392]
[1754061567689,0.001,3601.6,3601.1,0.5083]
[1754061567992,0.1402,3601.6,3601.0,0.1392]
[1754061568194,0.001,3601.6,3600.4,0.4613]
[1754061568395,0.03470776,3601.5,3600.1,0.5083]
[1754061568585,2.77758558,3601.6,3600.1,0.5083]
[1754061568752,2.77720502,3600.8,3600.1,0.5083]
[1754061568956,0.4293,3601.2,3599.8,0.4613]
[1754061569260,0.1392,3600.1,3599.6,0.1392]
[1754061569467,2.77816159,3599.6,3599.0,0.5083]
[1754061569667,0.1392,3599.8,3599.2,0.1392]
[1754061569873,2.77767777,3600.2,3599.3,2.78525578]
[1754061570093,2.77779875,3600.0,3599.3,0.1392]
[1754061570358,0.1392,3599.4,3598.8,0.1392]
[1754061570574,0.1392,3599.4,3598.8,0.6475]
[1754061570808,0.4293,3599.9,3598.4,0.4613]
[1754061571004,0.4293,3599.9,3598.3,0.5083]
[1754061571005,0.1392,3599.1,3598.6,0.1392]
[1754061571370,2.77849075,3599.1,3598.3,3.42657147]
[1754061571722,0.1392,3598.4,3597.9,6.676]
[1754061571900,0.9789,3599.1,3597.2,0.4613]
[1754061572072,2.77875362,3598.8,3597.1,0.71758145]
[1754061572278,0.1392,3597.8,3597.4,2.7797854]
[1754061572512,0.1392,3597.8,3597.3,0.1392]
[1754061572711,2.77977725,3597.5,3597.1,0.20928145]
[1754061573012,0.1392,3597.2,3596.5,0.1392]
[1754061573318,0.1392,3597.6,3597.1,0.1392]
[1754061573521,0.1392,3597.4,3596.9,0.1392]
[1754061573689,0.1392,3597.4,3596.9,0.6475]
[1754061574058,0.1392,3597.1,3597.0,2.78009452]
[1754061574307,2.77940461,3597.9,3597.1,2.78001182]
[1754061574614,4.642,3598.7,3597.9,2.77939894]
[1754061574788,2.77904351,3598.4,3597.3,2.77984634]
[1754061575109,3.32825557,3598.9,3597.4,2.78671587]
[1754061575309,0.1392,3598.4,3598.0,2.77931385]
[1754061575605,10.0037796,3599.5,3598.2,2.77916736]
[1754061575923,0.9789,3600.4,3599.0,0.1392]
[1754061576072,0.1392,3599.5,3599.2,2.77835518]
[1754061576406,0.1392,3599.6,3599.2,0.5083]
[1754061576613,1.01362704,3599.5,3598.2,2.7791073]
[1754061576910,0.1392,3599.1,3597.7,2.77950596]
[1754061577110,0.1392,3598.1,3597.4,2.91897185]
[1754061577278,0.03473186,3599.0,3597.3,0.5083]
[1754061577279,2.77923038,3598.2,3597.3,0.5083]
[1754061577611,2.77972272,3597.5,3596.8,0.5083]
[1754061577816,0.1392,3597.3,3596.8,0.6475]
[1754061577986,2.77885401,3598.7,3597.4,2.77974168]
[1754061577987,4.649,3598.7,3597.4,2.77974168]
[1754061578181,4.649,3598.7,3596.9,0.9696]
[1754061578182,2.77949958,3597.8,3597.3,0.5083]
[1754061578382,0.9789,3598.4,3596.9,0.4613]
[1754061578584,0.1392,3597.4,3597.1,2.7799923]
[1754061578786,2.77914708,3598.3,3597.3,2.77986267]
[1754061579086,0.1392,3597.9,3597.8,2.77947634]
[1754061579312,0.1392,3598.3,3597.8,0.1392]
[1754061579614,2.77924703,3598.1,3596.8,3.28847834]
[1754061579816,1.01363959,3598.2,3596.8,0.6475]
[1754061579817,0.1392,3597.3,3596.8,0.6475]
[1754061579977,0.9789,3598.2,3597.1,2.78000813]
[1754061580182,1.01363959,3598.2,3596.8,2.91938966]
[1754061580412,2.77924763,3598.1,3597.0,2.78008845]
[1754061580711,0.9789,3598.0,3596.4,0.5083]
[1754061580888,0.1392,3597.2,3596.7,2.78027164]
[1754061581089,0.1392,3597.2,3596.6,0.1392]
[1754061581499,0.5496,3598.5,3596.7,0.97659616]
[1754061581704,0.1392,3597.7,3597.1,0.1392]
[1754061582009,0.1392,3597.7,3597.6,2.77963086]
[1754061582214,0.1392,3597.9,3597.6,0.5083]
[1754061582516,0.1392,3599.2,3597.7,0.97657887]
[1754061582718,0.83503,3599.5,3597.9,3.0]
[1754061583023,3.20686464,3600.3,3599.5,2.77814845]
[1754061583184,3.20686464,3600.3,3599.5,2.77816363]
[1754061583185,3.20690695,3600.3,3599.5,2.77816363]
[1754061583390,3.20690695,3600.3,3598.9,3.28689743]
[1754061583391,0.1392,3599.8,3599.4,2.7782183]
[1754061583594,2.77765474,3600.2,3598.7,3.24004343]
[1754061583595,1.01362511,3599.7,3598.7,2.77872346]
[1754061583837,0.1392,3599.4,3598.3,0.5083]
[1754061584124,0.1392,3599.0,3598.9,2.77856363]
[1754061584422,0.1392,3599.7,3599.4,2.77823601]
[1754061584597,0.1392,3599.7,3599.4,2.77823395]
[1754061584801,0.1392,3599.7,3599.6,2.77808645]
[1754061585001,0.1392,3600.1,3599.5,2.77816363]
[1754061585206,0.1392,3600.5,3600.0,2.7777021]
[1754061585411,0.1392,3600.5,3600.4,2.77746917]
[1754061585700,4.655,3600.8,3599.7,0.4337]
[1754061586009,0.1392,3600.3,3600.2,2.77762346]
[1754061586211,0.1392,3600.3,3600.2,3.72052346]
[1754061586587,7.43862241,3601.5,3600.2,3.72052346]
[1754061586822,0.1392,3600.9,3600.7,2.77722272]
[1754061587020,0.1392,3600.9,3600.2,0.9429]
[1754061587021,0.001,3601.6,3600.2,0.9429]
[1754061587225,0.001,3601.6,3600.9,2.7770835]
[1754061587398,0.001,3601.6,3601.0,2.77695015]
[1754061587589,0.1392,3601.5,3600.9,0.1392]
[1754061587789,0.001,3601.6,3600.3,2.77747692]
[1754061587790,0.03470872,3601.4,3600.3,2.77747692]
[1754061588023,0.4553,3601.3,3599.3,4.661]
[1754061588322,5.22171065,3601.2,3599.4,2.77816475]
[1754061588628,2.77746156,3600.5,3599.3,0.5092]
[1754061588927,2.77700638,3601.0,3599.4,0.4337]
[1754061589250,2.7770835,3600.9,3599.4,0.4337]
[1754061589425,5.1153,3601.1,3599.4,0.4337]
[1754061589591,5.1153,3601.1,3599.3,0.5092]
[1754061589592,3.33771895,3601.0,3599.3,0.5092]
[1754061589786,2.77716063,3600.8,3599.3,3.28744686]
[1754061589992,2.77770628,3600.1,3599.3,3.28744686]
[1754061590299,0.03472222,3600.0,3599.0,2.77854959]
[1754061590508,2.77783093,3600.0,3599.2,2.77834036]
[1754061590711,0.03472318,3599.9,3598.5,6.677]
[1754061591035,2.77853611,3599.1,3598.3,3.28826533]
[1754061591236,2.81288478,3599.6,3598.3,0.5092]
[1754061591443,2.77876299,3598.8,3598.0,2.77932088]
[1754061591613,2.77824081,3599.4,3597.7,0.5092]
[1754061591940,1.01602897,3599.3,3597.7,0.5092]
[1754061592137,2.77855979,3599.0,3598.2,2.77911613]
[1754061592361,0.9813,3599.3,3597.8,0.4337]
[1754061592653,2.77871675,3598.8,3598.1,0.5092]
[1754061592835,2.77868576,3598.9,3597.6,0.4337]
[1754061593006,0.0347338,3598.8,3597.6,0.4337]
[1754061593196,2.77885844,3598.6,3597.5,0.5092]
[1754061593402,2.77883238,3598.7,3598.0,2.77931475]
[1754061593603,4.656,3599.1,3598.0,0.5092]
[1754061593940,0.9813,3599.0,3597.5,0.4337]
[1754061594104,2.7786268,3598.9,3597.9,2.7793938]
[1754061594440,2.7785627,3599.0,3598.1,2.77923053]
[1754061594652,4.656,3599.1,3597.9,0.5092]
[1754061594851,4.656,3599.1,3597.5,0.4337]
[1754061594852,2.77870401,3598.8,3597.5,3.72255658]
[1754061595017,5.6373,3599.1,3597.3,2.77979457]
[1754061595018,2.77937715,3598.0,3597.3,2.77979457]
[1754061595341,2.77920732,3598.2,3597.0,0.4337]
[1754061595654,4.654,3598.8,3597.4,0.5092]
[1754061595945,2.77876057,3598.8,3597.5,0.4337]
[1754061596150,0.526,3599.5,3597.7,2.7795536]
[1754061596308,2.7789194,3598.6,3597.8,3.72235322]
[1754061596656,2.77909617,3598.3,3597.3,0.4337]
[1754061596816,2.77918007,3598.2,3597.4,0.5092]
[1754061597003,2.81383514,3598.3,3596.9,0.5092]
[1754061597199,2.77911062,3598.3,3597.6,2.77961775]
[1754061597452,2.77869982,3598.9,3597.7,0.94987539]
[1754061597599,2.7786795,3598.9,3598.2,2.77916078]
[1754061597805,4.651,3599.7,3598.3,0.00696381]
[1754061598028,0.1392,3599.0,3598.9,2.7786268]
[1754061598238,0.1392,3599.0,3598.9,3.7215268]
[1754061598638,0.001,3600.4,3599.4,2.7782282]
[1754061598804,0.1402,3600.4,3600.0,2.77772645]
[1754061599009,0.001,3600.4,3599.6,2.77808645]
[1754061599309,0.1392,3600.1,3599.9,2.77783522]
[1754061599525,0.1392,3600.1,3599.6,2.91722999]
[1754061599739,0.1392,3600.1,3599.5,0.1392]
[1754061599919,0.001,3600.4,3599.8,2.77791837]
[1754061600220,2.77834564,3599.3,3597.9,0.9429]
[1754061600559,2.77834564,3599.3,3597.1,2.77995241]
[1754061600560,2.77854959,3599.0,3597.1,2.77995241]
[1754061600766,1.01603283,3598.9,3598.4,2.77895124]
[1754061600910,0.6539,3600.3,3597.8,4.659]
[1754061601106,0.001,3601.6,3598.2,0.1]
[1754061601340,0.001,3601.6,3601.5,2.77662085]
[1754061601544,0.001,3601.6,3601.5,0.1669662]
[1754061601849,0.001,3601.6,3601.5,2.77662085]
[1754061601850,0.9823,3601.6,3601.5,2.77662085]
[1754061602052,0.527,3601.6,3601.5,2.77662085]
[1754061602248,0.9823,3601.6,3600.3,0.20796713]
[1754061602554,0.9823,3601.6,3601.2,2.7768499]
[1754061602762,0.9813,3601.5,3599.7,3.0]
[1754061602968,0.9813,3601.5,3598.0,1.45981931]
[1754061602969,0.001,3601.6,3601.5,2.77662085]
[1754061603276,12.63942434,3603.9,3602.5,2.7758501]
[1754061603277,1e-08,3602.6,3602.5,2.7758501]
[1754061603746,1e-08,3602.6,3602.5,2.8036086]
[1754061603962,1e-08,3602.6,3602.5,2.7758501]
[1754061604462,1e-08,3602.6,3601.3,5.77676175]
[1754061604463,0.98130001,3602.6,3601.9,2.77631071]
[1754061604754,1.00907626,3602.5,3600.1,3.0]
[1754061604908,0.9813,3602.5,3600.2,0.02777623]
[1754061605114,5.7753,3602.5,3600.4,2.77746917]
[1754061605308,5.7753,3602.5,3600.2,0.02777623]
[1754061605309,0.9813,3602.5,3600.7,2.77723775]
[1754061605542,0.9813,3602.5,3602.4,2.77592715]
[1754061605751,1e-08,3602.6,3602.5,2.7758501]
[1754061606465,1e-08,3602.6,3601.0,4.793]
[1754061606466,0.98130001,3602.6,3601.0,4.793]
[1754061606771,0.526,3602.5,3600.7,3.0]
[1754061606976,3.30185805,3602.5,3601.5,2.7765964]
[1754061607156,1.00907626,3602.4,3599.8,7.56988654]
[1754061607331,1.00907626,3602.4,3601.6,2.77652349]
[1754061607332,0.526,3602.3,3601.6,2.77652349]
[1754061607532,0.526,3602.3,3600.6,2.77731489]
[1754061607759,0.9813,3602.3,3600.7,0.02777237]
[1754061608075,0.9813,3602.3,3601.6,2.77650148]
[1754061608248,0.9313,3602.3,3600.7,0.02777237]
[1754061608662,5.7193,3602.3,3600.7,0.0499]
[1754061608861,5.7193,3602.3,3601.6,2.77647596]
[1754061609064,8.49532336,3602.3,3600.2,4.8369]
[1754061609248,0.02777626,3602.2,3601.0,2.77699611]
[1754061609578,0.48307626,3602.2,3599.5,4.784]
[1754061609737,2.77662085,3601.5,3600.6,2.77724991]
[1754061609934,2.77662085,3601.5,3599.5,4.784]
[1754061609935,2.77677505,3601.3,3600.2,2.77756072]
[1754061610184,0.4553,3601.4,3599.0,0.0499]
[1754061610185,5.7663,3601.2,3599.0,0.0499]
[1754061610345,2.77718754,3600.8,3599.1,2.77847239]
[1754061610545,0.9813,3600.7,3599.0,0.21255414]
[1754061610746,0.9813,3600.7,3599.4,2.77818373]
[1754061610932,0.9813,3600.7,3599.0,2.77848626]
[1754061611139,0.9813,3600.7,3599.0,2.98710151]
[1754061611365,0.55377626,3600.6,3599.9,2.77785121]
[1754061611566,0.526,3600.6,3599.9,2.77785121]
[1754061611772,0.1392,3600.1,3599.9,2.77785121]
[1754061611974,0.9813,3600.0,3599.6,0.1392]
[1754061612273,0.9813,3600.0,3599.6,2.91727189]
[1754061612472,0.9813,3599.9,3599.3,2.7782645]
[1754061612768,0.1392,3599.8,3599.7,2.77800927]
[1754061613380,4.774,3600.3,3599.9,2.77784844]
[1754061613581,0.526,3600.6,3599.7,0.02778009]
[1754061613771,5.4392,3600.6,3600.4,2.7773996]
[1754061613945,0.9813,3600.5,3599.7,2.77799121]
[1754061614151,0.1392,3600.1,3600.0,2.77771864]
[1754061614384,0.1392,3600.4,3599.9,0.1392]
[1754061614584,11.972,3601.0,3599.9,0.1392]
[1754061614770,11.972,3601.0,3599.3,0.0499]
[1754061614771,3.44277152,3600.3,3599.6,2.917227]
[1754061614975,0.1392,3600.1,3599.5,2.77814894]
[1754061615283,0.55377626,3600.0,3599.3,0.002]
[1754061615486,0.1392,3599.5,3599.3,0.002]
[1754061616078,0.1392,3599.5,3599.4,2.77824081]
[1754061616275,0.1392,3599.5,3599.3,0.002]
[1754061616589,0.999,3599.4,3599.3,0.002]
[1754061616818,3.77724081,3599.4,3599.3,0.002]
[1754061617095,3.77724081,3599.4,3597.9,2.77938957]
[1754061617096,2.77864101,3598.9,3598.3,0.1392]
[1754061617293,0.1392,3598.6,3598.1,2.77923207]
[1754061617479,0.1392,3598.6,3598.1,2.77918854]
[1754061617480,0.6669,3598.6,3598.1,2.77918854]
[1754061617677,0.6669,3598.6,3597.0,2.78002681]
[1754061617678,0.5277,3598.5,3597.2,0.004]
[1754061617995,0.5277,3598.5,3598.2,2.77916736]
[1754061617996,0.1392,3598.3,3598.2,2.77916736]
[1754061618505,1.1382,3598.5,3598.2,2.77914173]
[1754061618710,1.1382,3598.5,3598.0,0.1392]
[1754061618711,0.999,3598.4,3598.0,0.1392]
[1754061619005,0.999,3598.4,3598.1,2.77918515]
[1754061619504,0.999,3598.4,3598.3,2.77909012]
[1754061619898,4.757,3598.8,3598.7,2.77878122]
[1754061620057,4.757,3598.8,3598.6,2.77882999]
[1754061620257,4.757,3598.8,3598.7,2.77878122]
[1754061620612,4.757,3598.8,3598.1,2.77919214]
[1754061620613,5.756,3598.8,3598.1,2.77919214]
[1754061620817,2.77891323,3598.6,3597.9,2.77938319]
[1754061620977,2.77906198,3598.4,3597.6,2.77959068]
[1754061621177,0.999,3598.3,3597.8,2.77944403]
[1754061621411,0.999,3598.3,3597.8,2.77947562]
[1754061621679,2.77931318,3598.1,3597.2,2.78392813]
[1754061621873,7.53233336,3598.0,3597.3,2.77986267]
[1754061622112,5.2807,3598.0,3597.2,0.004]
[1754061622325,0.5277,3598.0,3597.2,0.004]
[1754061622629,4.75,3598.1,3597.2,0.20875771]
[1754061622779,4.75,3598.3,3597.6,2.77956734]
[1754061622985,2.77946534,3597.9,3597.2,0.004]
[1754061623179,2.77934021,3598.0,3597.2,0.004]
[1754061623383,2.77957234,3597.7,3597.2,0.004]
[1754061623578,0.999,3597.8,3597.2,0.004]
[1754061623830,2.77976457,3597.5,3597.2,0.004]
[1754061624030,4.748,3597.4,3597.2,0.004]
[1754061624250,4.748,3597.3,3597.2,0.004]
[1754061624512,8.55463893,3597.3,3597.2,0.004]
[1754061624721,8.52686267,3597.3,3597.2,0.004]
[1754061626326,6.676,3597.6,3597.5,2.77970813]
[1754061626542,4.744,3598.1,3597.2,0.004]
[1754061626856,5.77077626,3598.0,3597.2,0.004]
[1754061627017,4.747,3597.9,3597.7,2.77954591]
[1754061627325,9.45450613,3599.1,3597.2,0.004]
[1754061627326,0.4713,3599.6,3597.8,0.07809476]
[1754061627638,5.2757,3600.0,3598.0,3.0]
[1754061627799,0.5277,3600.5,3598.2,3.55]
[1754061628153,0.5277,3600.5,3598.6,3.0]
[1754061628293,4.751,3600.4,3600.3,2.77754631]
[1754061628683,0.1392,3600.5,3600.4,2.77745527]
[1754061628879,0.1392,3600.5,3600.0,0.1392]
[1754061629325,0.1392,3600.5,3600.1,2.77770061]
[1754061629536,0.1392,3600.5,3600.0,0.1392]
[1754061629893,0.999,3600.4,3599.6,0.1392]
[1754061630094,4.744,3600.6,3598.2,0.0479]
[1754061630095,0.02777626,3600.3,3598.2,0.0479]
[1754061630294,0.1392,3599.7,3598.2,0.0479]
[1754061630502,0.1392,3599.7,3599.1,0.1392]
[1754061630695,4.741,3599.8,3598.6,2.77885408]
[1754061630696,5.24007626,3599.8,3598.6,2.77885408]
[1754061631020,3.80480883,3599.7,3598.1,0.21286381]
[1754061631229,3.80480883,3599.7,3597.2,0.0064]
[1754061631230,0.1392,3598.8,3598.3,0.1392]
[1754061631383,0.999,3598.7,3598.4,2.77899314]
[1754061631585,0.1392,3598.8,3598.4,2.77901289]
[1754061631806,0.1392,3598.8,3598.3,0.1669909]
[1754061632105,0.1392,3598.8,3598.4,2.77898406]
[1754061632309,0.999,3598.7,3598.3,0.1392]
[1754061632492,0.999,3598.6,3598.1,2.7792407]
[1754061632705,4.738,3599.0,3597.6,0.21004566]
[1754061632706,1.1382,3598.5,3598.0,2.77931343]
[1754061633081,0.1392,3598.2,3597.7,0.1392]
[1754061633282,0.6669,3598.2,3597.9,2.77938136]
[1754061633689,0.1392,3598.2,3597.8,2.77947344]
[1754061633913,0.1392,3598.2,3598.0,2.7793007]
[1754061634114,0.1392,3598.2,3597.7,0.1392]
[1754061634331,0.1392,3598.2,3597.2,0.21142958]
[1754061634332,0.4713,3598.2,3597.2,3.004]
[1754061634517,0.1392,3598.0,3597.2,0.004]
[1754061634784,2.77986267,3597.3,3597.2,0.004]
[1754061634984,0.1392,3597.5,3597.2,0.004]
[1754061635220,3.77886267,3597.3,3597.2,0.004]
[1754061635420,0.1392,3597.3,3597.2,0.004]
[1754061635922,8.64806267,3597.3,3597.2,0.004]
[1754061636425,4.8672,3597.3,3597.2,0.004]
[1754061636917,4.728,3597.5,3597.2,0.1432]
[1754061637483,2.7790755,3598.4,3597.2,0.1432]
[1754061637484,0.5277,3598.4,3597.2,0.004]
[1754061637700,4.725,3598.2,3597.2,2.78391339]
[1754061637932,6.676,3598.5,3598.0,2.7792923]
[1754061638229,4.727,3598.4,3597.5,2.77970813]
[1754061638525,0.4713,3598.3,3597.2,0.004]
[1754061638737,2.77935615,3598.0,3597.2,0.004]
[1754061638938,4.726,3597.9,3597.2,0.004]
[1754061639083,5.2537,3597.9,3597.2,0.004]
[1754061639383,0.4713,3597.8,3597.2,0.004]
[1754061639586,0.02777626,3597.7,3597.2,0.004]
[1754061639787,6.676,3598.5,3597.2,0.004]
[1754061640022,0.999,3598.1,3597.6,2.77956018]
[1754061640238,0.999,3598.0,3597.6,2.77956018]
[1754061640444,0.999,3597.9,3597.2,0.004]
[1754061640721,2.77843297,3599.2,3597.2,0.004]
[1754061640722,4.722,3598.6,3598.4,2.77901289]
[1754061640895,4.722,3598.6,3597.6,0.0277963]
[1754061641095,0.5277,3598.5,3597.9,2.77936388]
[1754061641297,0.999,3598.5,3597.9,2.77934296]
[1754061641498,1.02677626,3598.4,3597.2,2.78393735]
[1754061641697,0.999,3598.3,3597.3,2.77980791]
[1754061641924,2.7792446,3598.1,3597.2,2.7839336]
[1754061642090,0.5277,3598.0,3597.2,2.7839336]